[Event "Titled Tuesday Blitz February 01 A 2022"]
[White "Svane, Frederik"]
[Black "Shimanov, Aleksandr"]
[WhiteFideId "12923044"]
[BlackFideId "4198603"]
[WhiteElo "2459"]
[BlackElo "2636"]
[Result "0-1"]
[Round "11"]
[TimeControl "180+1"]
[Date "2022.02.01"]
[WhiteClock "0:00:19"]
[BlackClock "0:00:20"]

1. e4 {[%clk 0:03:00]}  d5 {[%clk 0:02:56]} 2. exd5 {[%clk 0:03:01]}  Qxd5 {[%clk 0:02:57]} 3. Nc3 {[%clk 0:03:02]}  Qe5+ {[%clk 0:02:58]} 4. Be2 {[%clk 0:02:59]}  Bg4 {[%clk 0:02:58]} 5. d4 {[%clk 0:02:59]}  Bxe2 {[%clk 0:02:58]} 6. Ngxe2 {[%clk 0:02:58]}  Qa5 {[%clk 0:02:58]} 7. O-O {[%clk 0:02:57]}  Nf6 {[%clk 0:02:57]} 8. b4 {[%clk 0:02:57]}  Qh5 {[%clk 0:02:56]} 9. Nf4 {[%clk 0:02:51]}  Qxd1 {[%clk 0:02:55]} 10. Rxd1 {[%clk 0:02:52]}  e6 {[%clk 0:02:53]} 11. Nb5 {[%clk 0:02:50]}  Na6 {[%clk 0:02:46]} 12. a3 {[%clk 0:02:50]}  c6 {[%clk 0:02:45]} 13. Nc3 {[%clk 0:02:51]}  O-O-O {[%clk 0:02:42]} 14. Be3 {[%clk 0:02:48]}  Nc7 {[%clk 0:02:41]} 15. d5 {[%clk 0:02:36]}  Ncxd5 {[%clk 0:02:34]} 16. Ncxd5 {[%clk 0:02:32]}  exd5 {[%clk 0:02:24]} 17. Bxa7 {[%clk 0:02:32]}  Bd6 {[%clk 0:02:24]} 18. Nd3 {[%clk 0:02:32]}  Ne4 {[%clk 0:02:03]} 19. Bd4 {[%clk 0:02:30]}  f6 {[%clk 0:02:03]} 20. f3 {[%clk 0:02:29]}  Ng5 {[%clk 0:02:03]} 21. Re1 {[%clk 0:02:27]}  Rhe8 {[%clk 0:02:03]} 22. Bb6 {[%clk 0:02:27]}  Bc7 {[%clk 0:01:53]} 23. Bf2 {[%clk 0:02:21]}  Nf7 {[%clk 0:01:50]} 24. a4 {[%clk 0:02:10]}  Ne5 {[%clk 0:01:43]} 25. b5 {[%clk 0:02:04]}  Ba5 {[%clk 0:01:39]} 26. Reb1 {[%clk 0:01:57]}  Nc4 {[%clk 0:01:36]} 27. Nc5 {[%clk 0:01:39]}  b6 {[%clk 0:01:25]} 28. Nb3 {[%clk 0:01:14]}  c5 {[%clk 0:01:20]} 29. Nxa5 {[%clk 0:01:14]}  Nxa5 {[%clk 0:01:20]} 30. Be1 {[%clk 0:01:14]}  Nc4 {[%clk 0:01:17]} 31. a5 {[%clk 0:01:14]}  Kb7 {[%clk 0:01:15]} 32. axb6 {[%clk 0:01:11]}  Ra8 {[%clk 0:01:15]} 33. Bf2 {[%clk 0:01:04]}  Rxa1 {[%clk 0:00:57]} 34. Rxa1 {[%clk 0:01:05]}  Kxb6 {[%clk 0:00:58]} 35. c3 {[%clk 0:00:57]}  Re7 {[%clk 0:00:55]} 36. Ra8 {[%clk 0:00:54]}  Kxb5 {[%clk 0:00:51]} 37. Rc8 {[%clk 0:00:53]}  Ne3 {[%clk 0:00:48]} 38. g4 {[%clk 0:00:43]}  Kc4 {[%clk 0:00:46]} 39. h4 {[%clk 0:00:43]}  d4 {[%clk 0:00:34]} 40. cxd4 {[%clk 0:00:41]}  Kxd4 {[%clk 0:00:35]} 41. Rd8+ {[%clk 0:00:30]}  Kc3 {[%clk 0:00:30]} 42. Be1+ {[%clk 0:00:28]}  Kc4 {[%clk 0:00:25]} 43. Bf2 {[%clk 0:00:26]}  Nc2 {[%clk 0:00:22]} 44. Kg2 {[%clk 0:00:22]}  Nd4 {[%clk 0:00:21]} 45. Kg3 {[%clk 0:00:20]}  Rc7 {[%clk 0:00:20]} 46. h5 {[%clk 0:00:20]}  h6 {[%clk 0:00:20]} 47. Kf4 {[%clk 0:00:19]}  Ne6+ {[%clk 0:00:20]} 0-1


[Site "https://www.chess.com"]

[Event "Titled Tuesday Blitz February 01 A 2022"]
[White "Szpar, Milosz"]
[Black "Hayrapetyan, Hovik"]
[WhiteFideId "1184989"]
[BlackFideId "13302639"]
[WhiteElo "2447"]
[BlackElo "2352"]
[Result "1-0"]
[Round "11"]
[TimeControl "180+1"]
[Date "2022.02.01"]
[WhiteClock "0:00:42"]
[BlackClock "0:00:50"]

1. e4 {[%clk 0:03:00]}  g6 {[%clk 0:02:59]} 2. d4 {[%clk 0:03:01]}  Bg7 {[%clk 0:02:59]} 3. Nf3 {[%clk 0:03:01]}  d6 {[%clk 0:02:59]} 4. Bc4 {[%clk 0:03:01]}  Nf6 {[%clk 0:02:59]} 5. Qe2 {[%clk 0:03:01]}  O-O {[%clk 0:02:58]} 6. O-O {[%clk 0:03:01]}  c6 {[%clk 0:02:58]} 7. Bb3 {[%clk 0:03:01]}  Bg4 {[%clk 0:02:51]} 8. Nbd2 {[%clk 0:03:01]}  e5 {[%clk 0:02:49]} 9. dxe5 {[%clk 0:03:01]}  dxe5 {[%clk 0:02:49]} 10. h3 {[%clk 0:03:02]}  Bxf3 {[%clk 0:02:49]} 11. Nxf3 {[%clk 0:03:03]}  Qe7 {[%clk 0:02:50]} 12. Rd1 {[%clk 0:02:53]}  Nbd7 {[%clk 0:02:47]} 13. c3 {[%clk 0:02:50]}  Nc5 {[%clk 0:02:45]} 14. Bc2 {[%clk 0:02:50]}  a5 {[%clk 0:02:40]} 15. Bg5 {[%clk 0:02:39]}  h6 {[%clk 0:02:38]} 16. Bh4 {[%clk 0:02:40]}  g5 {[%clk 0:02:34]} 17. Bg3 {[%clk 0:02:40]}  Nh5 {[%clk 0:02:34]} 18. Qe3 {[%clk 0:02:36]}  Nf4 {[%clk 0:02:24]} 19. Rd2 {[%clk 0:02:28]}  Rfd8 {[%clk 0:02:23]} 20. Rad1 {[%clk 0:02:27]}  Rxd2 {[%clk 0:02:21]} 21. Qxd2 {[%clk 0:02:27]}  Kf8 {[%clk 0:02:07]} 22. Nh2 {[%clk 0:02:18]}  Ke8 {[%clk 0:01:57]} 23. Ng4 {[%clk 0:02:18]}  Rd8 {[%clk 0:01:46]} 24. Qe1 {[%clk 0:01:38]}  Rxd1 {[%clk 0:01:44]} 25. Qxd1 {[%clk 0:01:38]}  Qd7 {[%clk 0:01:24]} 26. Qe1 {[%clk 0:01:18]}  Qe6 {[%clk 0:01:22]} 27. b3 {[%clk 0:01:13]}  b5 {[%clk 0:01:15]} 28. Ne3 {[%clk 0:01:11]}  Bf8 {[%clk 0:01:13]} 29. Nf5 {[%clk 0:01:11]}  h5 {[%clk 0:01:10]} 30. h4 {[%clk 0:01:10]}  g4 {[%clk 0:01:09]} 31. Qe3 {[%clk 0:01:08]}  Bd6 {[%clk 0:01:00]} 32. Ng7+ {[%clk 0:01:05]}  Kd7 {[%clk 0:00:58]} 33. Nxe6 {[%clk 0:01:05]}  Kxe6 {[%clk 0:00:58]} 34. b4 {[%clk 0:01:01]}  axb4 {[%clk 0:00:57]} 35. cxb4 {[%clk 0:01:02]}  Nd7 {[%clk 0:00:57]} 36. Bb3+ {[%clk 0:01:01]}  Ke7 {[%clk 0:00:58]} 37. a4 {[%clk 0:00:55]}  bxa4 {[%clk 0:00:54]} 38. Bxa4 {[%clk 0:00:55]}  Bxb4 {[%clk 0:00:54]} 39. Bxf4 {[%clk 0:00:54]}  Bc5 {[%clk 0:00:50]} 40. Bg5+ {[%clk 0:00:48]}  f6 {[%clk 0:00:50]} 41. Qd2 {[%clk 0:00:46]}  fxg5 {[%clk 0:00:49]} 42. Qxg5+ {[%clk 0:00:46]}  Kd6 {[%clk 0:00:50]} 43. Qxh5 {[%clk 0:00:45]}  Nf6 {[%clk 0:00:50]} 44. Qg6 {[%clk 0:00:45]}  Ke7 {[%clk 0:00:50]} 45. Bxc6 {[%clk 0:00:45]}  g3 {[%clk 0:00:50]} 46. Qxg3 {[%clk 0:00:42]} 1-0


[Site "https://www.chess.com"]

[Event "Titled Tuesday Blitz February 01 A 2022"]
[White "Urazayev, Arystanbek"]
[Black "Nogerbek, Kazybek"]
[WhiteFideId "13709810"]
[BlackFideId "13710427"]
[WhiteElo "2321"]
[BlackElo "2478"]
[Result "1-0"]
[Round "11"]
[TimeControl "180+1"]
[Date "2022.02.01"]
[WhiteClock "0:01:43"]
[BlackClock "0:01:18"]

1. e4 {[%clk 0:03:00]}  c5 {[%clk 0:02:58]} 2. Nf3 {[%clk 0:03:01]}  d6 {[%clk 0:02:58]} 3. d4 {[%clk 0:02:59]}  cxd4 {[%clk 0:02:59]} 4. Nxd4 {[%clk 0:02:59]}  Nf6 {[%clk 0:03:00]} 5. Nc3 {[%clk 0:03:00]}  a6 {[%clk 0:03:00]} 6. Rg1 {[%clk 0:03:00]}  g6 {[%clk 0:02:55]} 7. g4 {[%clk 0:03:00]}  Bg7 {[%clk 0:02:56]} 8. Be2 {[%clk 0:02:50]}  Nc6 {[%clk 0:02:54]} 9. Be3 {[%clk 0:02:50]}  h5 {[%clk 0:02:34]} 10. gxh5 {[%clk 0:02:32]}  Nxh5 {[%clk 0:02:34]} 11. Nd5 {[%clk 0:02:19]}  Rb8 {[%clk 0:01:33]} 12. Bxh5 {[%clk 0:02:03]}  Rxh5 {[%clk 0:01:27]} 13. Qxh5 {[%clk 0:02:02]}  gxh5 {[%clk 0:01:18]} 14. Rxg7 {[%clk 0:02:00]}  Kd7 {[%clk 0:01:18]} 15. Rxf7 {[%clk 0:01:43]} 1-0


[Site "https://www.chess.com"]

[Event "Titled Tuesday Blitz February 01 A 2022"]
[White "Yeletsky, Ivan"]
[Black "Shimelkov, Vasiliy"]
[WhiteFideId "24180327"]
[BlackFideId "13701630"]
[WhiteElo "2348"]
[BlackElo "2073"]
[Result "1-0"]
[Round "11"]
[TimeControl "180+1"]
[Date "2022.02.01"]
[WhiteClock "0:00:07"]
[BlackClock "0:00:12"]

1. e4 {[%clk 0:03:00]}  c5 {[%clk 0:02:56]} 2. Nf3 {[%clk 0:03:00]}  Nc6 {[%clk 0:02:56]} 3. Nc3 {[%clk 0:02:54]}  e6 {[%clk 0:02:56]} 4. Bb5 {[%clk 0:02:50]}  Nge7 {[%clk 0:02:54]} 5. O-O {[%clk 0:02:36]}  a6 {[%clk 0:02:52]} 6. Be2 {[%clk 0:02:35]}  d5 {[%clk 0:02:49]} 7. exd5 {[%clk 0:02:34]}  Nxd5 {[%clk 0:02:48]} 8. Nxd5 {[%clk 0:02:28]}  Qxd5 {[%clk 0:02:48]} 9. b3 {[%clk 0:02:26]}  Be7 {[%clk 0:02:46]} 10. Bb2 {[%clk 0:02:26]}  O-O {[%clk 0:02:46]} 11. Re1 {[%clk 0:02:24]}  b5 {[%clk 0:02:43]} 12. a4 {[%clk 0:02:24]}  Bb7 {[%clk 0:02:41]} 13. axb5 {[%clk 0:02:21]}  axb5 {[%clk 0:02:38]} 14. Bxb5 {[%clk 0:02:22]}  Nd4 {[%clk 0:02:33]} 15. Bxd4 {[%clk 0:02:20]}  cxd4 {[%clk 0:02:33]} 16. Bc4 {[%clk 0:02:21]}  Qc5 {[%clk 0:02:28]} 17. Qe2 {[%clk 0:02:17]}  Bf6 {[%clk 0:02:24]} 18. Bd3 {[%clk 0:02:12]}  Rxa1 {[%clk 0:02:18]} 19. Rxa1 {[%clk 0:02:13]}  e5 {[%clk 0:02:14]} 20. Be4 {[%clk 0:02:07]}  Bc8 {[%clk 0:02:11]} 21. Ra8 {[%clk 0:02:03]}  Be6 {[%clk 0:02:04]} 22. Rxf8+ {[%clk 0:02:00]}  Kxf8 {[%clk 0:02:02]} 23. h3 {[%clk 0:02:01]}  g6 {[%clk 0:01:59]} 24. g4 {[%clk 0:01:55]}  Kg7 {[%clk 0:01:55]} 25. Kg2 {[%clk 0:01:50]}  h6 {[%clk 0:01:52]} 26. Ne1 {[%clk 0:01:35]}  Bh4 {[%clk 0:01:46]} 27. Nf3 {[%clk 0:01:25]}  Bf6 {[%clk 0:01:44]} 28. Qa6 {[%clk 0:01:21]}  Qb4 {[%clk 0:01:36]} 29. Qc6 {[%clk 0:01:15]}  Qa5 {[%clk 0:01:32]} 30. Qb7 {[%clk 0:01:07]}  Qc5 {[%clk 0:01:29]} 31. b4 {[%clk 0:01:07]}  Qd6 {[%clk 0:01:27]} 32. b5 {[%clk 0:01:05]}  Bd8 {[%clk 0:01:25]} 33. Qc6 {[%clk 0:00:51]}  Qxc6 {[%clk 0:01:18]} 34. Bxc6 {[%clk 0:00:52]}  f6 {[%clk 0:01:15]} 35. d3 {[%clk 0:00:44]}  Kf7 {[%clk 0:01:13]} 36. Nd2 {[%clk 0:00:42]}  Ke7 {[%clk 0:01:12]} 37. Kg3 {[%clk 0:00:37]}  Bb6 {[%clk 0:01:08]} 38. f4 {[%clk 0:00:37]}  exf4+ {[%clk 0:01:06]} 39. Kxf4 {[%clk 0:00:37]}  Bc7+ {[%clk 0:01:05]} 40. Kf3 {[%clk 0:00:38]}  Kd6 {[%clk 0:01:03]} 41. Ne4+ {[%clk 0:00:35]}  Ke5 {[%clk 0:01:03]} 42. Nc5 {[%clk 0:00:35]}  Bc8 {[%clk 0:00:54]} 43. Na4 {[%clk 0:00:13]}  f5 {[%clk 0:00:52]} 44. b6 {[%clk 0:00:13]}  Bb8 {[%clk 0:00:48]} 45. b7 {[%clk 0:00:09]}  Be6 {[%clk 0:00:48]} 46. Nc5 {[%clk 0:00:09]}  Kd6 {[%clk 0:00:48]} 47. Nxe6 {[%clk 0:00:04]}  Kxe6 {[%clk 0:00:49]} 48. Be8 {[%clk 0:00:03]}  Kf6 {[%clk 0:00:48]} 49. Bd7 {[%clk 0:00:02]}  Bc7 {[%clk 0:00:45]} 50. Bc8 {[%clk 0:00:02]}  Bb8 {[%clk 0:00:45]} 51. gxf5 {[%clk 0:00:01]}  gxf5 {[%clk 0:00:44]} 52. Bd7 {[%clk 0:00:02]}  Bc7 {[%clk 0:00:43]} 53. Bb5 {[%clk 0:00:03]}  Bb8 {[%clk 0:00:42]} 54. Bc4 {[%clk 0:00:04]}  Bc7 {[%clk 0:00:42]} 55. Bb5 {[%clk 0:00:04]}  Bb8 {[%clk 0:00:42]} 56. Bd7 {[%clk 0:00:05]}  Bc7 {[%clk 0:00:43]} 57. Ke2 {[%clk 0:00:05]}  Bb8 {[%clk 0:00:42]} 58. Kd2 {[%clk 0:00:06]}  Ke5 {[%clk 0:00:40]} 59. c3 {[%clk 0:00:05]}  f4 {[%clk 0:00:38]} 60. Bg4 {[%clk 0:00:06]}  Bc7 {[%clk 0:00:38]} 61. Kc2 {[%clk 0:00:05]}  Bb8 {[%clk 0:00:37]} 62. Kb3 {[%clk 0:00:05]}  Bc7 {[%clk 0:00:35]} 63. Kc4 {[%clk 0:00:04]}  dxc3 {[%clk 0:00:34]} 64. Kxc3 {[%clk 0:00:05]}  Kd5 {[%clk 0:00:33]} 65. Bf3+ {[%clk 0:00:04]}  Kd6 {[%clk 0:00:30]} 66. d4 {[%clk 0:00:05]}  Bb8 {[%clk 0:00:30]} 67. Kc4 {[%clk 0:00:06]}  Ba7 {[%clk 0:00:30]} 68. Kd3 {[%clk 0:00:06]}  Bb8 {[%clk 0:00:29]} 69. Ke4 {[%clk 0:00:07]}  Ke6 {[%clk 0:00:28]} 70. Bg4+ {[%clk 0:00:07]}  Kf6 {[%clk 0:00:28]} 71. Kd5 {[%clk 0:00:07]}  Ke7 {[%clk 0:00:26]} 72. Kc6 {[%clk 0:00:07]}  Kf6 {[%clk 0:00:22]} 73. Bf3 {[%clk 0:00:06]}  Ke7 {[%clk 0:00:22]} 74. Be4 {[%clk 0:00:07]}  Bd6 {[%clk 0:00:17]} 75. Kb6 {[%clk 0:00:06]}  Bb8 {[%clk 0:00:18]} 76. Kc5 {[%clk 0:00:06]}  Bd6+ {[%clk 0:00:17]} 77. Kc4 {[%clk 0:00:06]}  Bb8 {[%clk 0:00:17]} 78. Bg2 {[%clk 0:00:06]}  Bc7 {[%clk 0:00:17]} 79. Kd3 {[%clk 0:00:07]}  Bb8 {[%clk 0:00:17]} 80. Ke4 {[%clk 0:00:08]}  Kf6 {[%clk 0:00:17]} 81. Bf3 {[%clk 0:00:07]}  Bc7 {[%clk 0:00:17]} 82. Bg4 {[%clk 0:00:06]}  Bb8 {[%clk 0:00:17]} 83. Kd5 {[%clk 0:00:03]}  Ke7 {[%clk 0:00:16]} 84. Be2 {[%clk 0:00:02]}  Bc7 {[%clk 0:00:15]} 85. Bd1 {[%clk 0:00:03]}  Bb8 {[%clk 0:00:15]} 86. Ke4 {[%clk 0:00:04]}  Kf6 {[%clk 0:00:15]} 87. Kf3 {[%clk 0:00:03]}  Ke7 {[%clk 0:00:15]} 88. Bb3 {[%clk 0:00:03]}  Kf6 {[%clk 0:00:15]} 89. Bc2 {[%clk 0:00:03]}  Bc7 {[%clk 0:00:15]} 90. Be4 {[%clk 0:00:04]}  Bb8 {[%clk 0:00:15]} 91. Ke2 {[%clk 0:00:04]}  Bc7 {[%clk 0:00:15]} 92. Kd3 {[%clk 0:00:05]}  Bb8 {[%clk 0:00:16]} 93. Kc4 {[%clk 0:00:05]}  Bc7 {[%clk 0:00:16]} 94. Kb5 {[%clk 0:00:05]}  Bb8 {[%clk 0:00:15]} 95. Kc6 {[%clk 0:00:06]}  Ke7 {[%clk 0:00:15]} 96. d5 {[%clk 0:00:07]}  Bd6 {[%clk 0:00:15]} 97. Kb6 {[%clk 0:00:06]}  Bb8 {[%clk 0:00:16]} 98. Bf3 {[%clk 0:00:06]}  Bd6 {[%clk 0:00:16]} 99. Ka7 {[%clk 0:00:06]}  Kf6 {[%clk 0:00:12]} 100. b8=Q {[%clk 0:00:06]}  Bxb8+ {[%clk 0:00:12]} 101. Kxb8 {[%clk 0:00:07]} 1-0